fUST/lending_fUST_20250227
["ID","MTS","AMOUNT","RATE_DAILY","PERIOD"]
[354667409,1740608912648,5099.48968476,0.000212,30]
[354667410,1740608913800,6696.32713262,0.00023,30]
[354667411,1740608914044,5470.0,0.00025,30]
[354667412,1740608915830,17806.68552,0.00026,30]
[354667413,1740608918243,154994.56073088,0.00052489,120]
[354667414,1740608945130,-12871.840746,0.00023,2]
[354667415,1740608945152,-4726.501968,0.00037,60]
[354667416,1740608945173,-48435.05397131,0.00041,8]
[354667417,1740608945196,-644.32519551,0.000419,9]
[354667418,1740608945217,-11260.62879031,0.00042,8]
[354667419,1740608946225,-8512.79980164,0.00042,8]
[354667420,1740608946248,-152.0,0.00042178,2]
[354667421,1740608946271,-20001.70987672,0.000426,120]
[354667422,1740608946294,-613.925,0.00042844,65]
[354667423,1740608946316,-20000.0,0.00043,8]
[354667424,1740608946342,-20000.0,0.00044,8]
[354667425,1740608946365,-302.0,0.00045,120]
[354667426,1740608946388,-302.0,0.00045,120]
[354667427,1740608946515,-158.1,0.000459,30]
[354667428,1740608951107,-500.0,0.00048397,120]
[354667429,1740608951129,-500.0,0.00048397,120]
[354667430,1740608951154,-500.0,0.00048397,2]
[354667431,1740608951177,-477.74994971,0.00048397,120]
[354667432,1740608953542,-22.25005029,0.00048397,120]
[354667433,1740608953567,-500.0,0.00048397,120]
[354667434,1740608953592,-500.0,0.00048397,2]
[354667435,1740608953617,-500.0,0.00048397,120]
[354667436,1740608953641,-500.0,0.00048397,120]
[354667437,1740608953666,-273.6014561,0.00048397,120]
[354667438,1740608953692,-500.0,0.00048397,120]
[354667439,1740608953717,-500.0,0.00048397,2]
[354667440,1740608953740,-500.0,0.00048397,120]
[354667441,1740608953762,-433.04672297,0.00048397,2]
[354667442,1740608953786,-500.0,0.00048397,120]
[354667443,1740608953810,-500.0,0.00048397,120]
[354667444,1740608953833,-500.0,0.00048397,120]
[354667445,1740608953952,-500.0,0.00048397,120]
[354667446,1740608953979,-500.0,0.00048397,120]
[354667447,1740608954004,-500.0,0.00048397,120]
[354667448,1740608954028,-242.05841558,0.00048397,120]
[354667449,1740608954052,-500.0,0.00048397,120]
[354667450,1740608954075,-15194.90680322,0.00048398,120]
[354667451,1740608954099,-217.49955704,0.000487,2]
[354667452,1740608954125,-26280.88,0.00048799,120]
[354667453,1740608954148,-19584.4124536,0.000488,120]
[354667454,1740608954170,-8003.66,0.000488,30]
[354667455,1740608954197,-1013.78,0.000488,30]
[354667456,1740608954227,-7313.96,0.000488,30]
[354667457,1740608954252,-15627.38905328,0.00049,120]
[354667458,1740608954276,-9860.0,0.00049,120]
[354667459,1740608954299,-151.0,0.00049,26]
[354667460,1740608954322,-644.32519522,0.00049072,11]
[354667461,1740608954344,-151.0,0.000493,29]
[354667462,1740608954366,-500.0,0.00049315,120]
[354667463,1740608954388,-500.0,0.00049315,120]
[354667464,1740608954410,-500.0,0.00049315,120]
[354667465,1740608954432,-2914.93,0.00049315,120]
[354667466,1740608954454,-4536.32,0.00049315,120]
[354667467,1740608954479,-500.0,0.00049315,120]
[354667468,1740608954501,-500.0,0.00049315,120]
[354667469,1740608954522,-752.44,0.00049315,120]
[354667470,1740608954545,-1787.06,0.00049315,120]
[354667471,1740608954567,-500.0,0.00049315,120]
[354667472,1740608954588,-1478.98,0.00049315,120]
[354667473,1740608954610,-1500.56,0.00049315,120]
[354667474,1740608954634,-500.0,0.00049315,120]
[354667475,1740608954656,-500.0,0.00049315,120]
[354667476,1740608954678,-500.0,0.00049315,120]
[354667477,1740608954699,-500.0,0.00049315,120]
[354667478,1740608954721,-500.0,0.00049315,120]
[354667479,1740608954743,-500.0,0.00049315,120]
[354667480,1740608954764,-782.09,0.00049315,120]
[354667481,1740608954786,-14765.01,0.00049315,120]
[354667482,1740608954808,-5266.25,0.00049315,120]
[354667483,1740608954831,-500.0,0.00049315,120]
[354667484,1740608954852,-770.39,0.00049315,120]
[354667485,1740608954875,-515.55813512,0.00049315,120]
[354667486,1740608954898,-500.0,0.00049315,120]
[354667487,1740608954920,-500.0,0.00049315,120]
[354667488,1740608954943,-792.64,0.00049315,30]
[354667489,1740608954965,-500.0,0.00049315,120]
[354667490,1740608954988,-2160.7,0.00049315,120]
[354667491,1740608955011,-500.0,0.00049315,14]
[354667492,1740608955034,-500.0,0.00049315,120]
[354667493,1740608955056,-1532.62,0.00049315,120]
[354667494,1740608955078,-384.1121605,0.00049315,120]
[354667495,1740608955101,-6927.1,0.00049315,120]
[354667496,1740608955123,-433.8890098,0.00049315,120]
[354667497,1740608955147,-2666.1,0.00049315,120]
[354667498,1740608955170,-500.0,0.00049315,120]
[354667499,1740608955193,-917.32,0.00049315,120]
[354667500,1740608955216,-13034.47,0.00049315,3]
[354667501,1740608955238,-500.0,0.00049315,120]
[354667502,1740608955259,-500.0,0.00049315,120]
[354667503,1740608955280,-500.0,0.00049315,120]
[354667504,1740608955301,-500.0,0.00049315,120]
[354667505,1740608955323,-2183.5,0.00049315,120]
[354667506,1740608955345,-7716.27,0.00049315,120]
[354667507,1740608955367,-500.0,0.00049315,120]
[354667508,1740608955388,-1295.69,0.00049315,120]
[354667509,1740608955411,-1796.04,0.00049315,120]
[354667510,1740608955433,-500.0,0.00049315,120]
[354667511,1740608955458,-1000.0,0.00049315,2]
[354667512,1740608955480,-9107.28,0.00049315,120]
[354667513,1740608955505,-500.0,0.00049315,120]
[354667514,1740608955529,-500.0,0.00049315,120]
[354667515,1740608955552,-162513.75,0.00049315,7]
[354667516,1740608955576,-28466.8,0.00049315,120]
[354667517,1740608955598,-624.92639399,0.00049315,120]
[354667518,1740608955624,-500.0,0.00049315,120]
[354667519,1740608955648,-2249.06,0.00049315,120]
[354667520,1740608955673,-500.0,0.00049315,120]
[354667521,1740608955698,-500.0,0.00049315,120]
[354667522,1740608955810,-500.0,0.00049315,120]
[354667523,1740608955839,-3413.72,0.00049315,120]
[354667524,1740608955864,-3413.72,0.00049315,120]
[354667525,1740608955886,-3413.72,0.00049315,120]
[354667526,1740608955909,-3413.72,0.00049315,120]
[354667527,1740608955932,-500.0,0.00049315,120]
[354667528,1740608955955,-3413.72,0.00049315,120]
[354667529,1740608955978,-14629.56,0.00049315,120]
[354667530,1740608956001,-3413.72,0.00049315,120]
[354667531,1740608956023,-500.0,0.00049315,120]
[354667532,1740608956046,-1154.66,0.00049315,120]
[354667533,1740608956068,-500.0,0.00049315,120]
[354667534,1740608956092,-3558.64,0.00049315,120]
[354667535,1740608956115,-500.0,0.00049315,120]
[354667536,1740608956139,-1825.47,0.00049315,120]
[354667537,1740608956162,-500.0,0.00049315,120]
[354667538,1740608956186,-500.0,0.00049315,120]
[354667539,1740608956209,-9449.99,0.00049315,120]
[354667540,1740608956235,-1817.32,0.00049315,120]
[354667541,1740608956258,-2641.65,0.00049315,120]
[354667542,1740608956279,-500.0,0.00049315,120]
[354667543,1740608956302,-478.3062698,0.00049315,2]
[354667544,1740608956324,-500.0,0.00049315,120]
[354667545,1740608956346,-500.0,0.00049589,120]
[354667546,1740608956368,-500.0,0.00049589,120]
[354667547,1740608956390,-2914.93,0.00049589,120]
[354667548,1740608956413,-4536.32,0.00049589,120]
[354667549,1740608956437,-501.71054458,0.00049589,120]
[354667550,1740608956462,-752.44,0.00049589,120]
[354667551,1740608956485,-1787.06,0.00049589,120]
[354667552,1740608956511,-500.0,0.00049589,120]
[354667553,1740608956535,-1478.98,0.00049589,120]
[354667554,1740608956557,-1500.56,0.00049589,120]
[354667555,1740608956579,-500.0,0.00049589,120]
[354667556,1740608956604,-500.0,0.00049589,120]
[354667557,1740608956630,-500.0,0.00049589,120]
[354667558,1740608956653,-500.0,0.00049589,120]
[354667559,1740608956675,-782.09,0.00049589,120]
[354667560,1740608956696,-500.0,0.00049589,120]
[354667561,1740608956719,-14765.01,0.00049589,120]
[354667562,1740608956744,-5266.25,0.00049589,120]
[354667563,1740608956767,-500.0,0.00049589,120]
[354667564,1740608956789,-770.39,0.00049589,120]
[354667565,1740608956812,-500.0,0.00049589,120]
[354667566,1740608956834,-792.64,0.00049589,30]
[354667567,1740608956858,-500.0,0.00049589,120]
[354667568,1740608956882,-2160.7,0.00049589,120]
[354667569,1740608956905,-500.0,0.00049589,14]
[354667570,1740608956930,-500.0,0.00049589,120]
[354667571,1740608956954,-1532.62,0.00049589,120]
[354667572,1740608956978,-6927.1,0.00049589,120]
[354667573,1740608957001,-2666.1,0.00049589,120]
[354667574,1740608957025,-500.0,0.00049589,120]
[354667575,1740608957049,-917.32,0.00049589,120]
[354667576,1740608957071,-500.0,0.00049589,120]
[354667577,1740608957094,-13034.47,0.00049589,3]
[354667578,1740608957116,-500.0,0.00049589,120]
[354667579,1740608957138,-500.0,0.00049589,120]
[354667580,1740608957160,-2183.5,0.00049589,120]
[354667581,1740608957185,-7716.27,0.00049589,120]
[354667582,1740608957208,-500.0,0.00049589,120]
[354667583,1740608957230,-64.17130808,0.00049589,120]
[354667584,1740608964212,-500.0,0.000493,10]
[354667585,1740608964235,-500.0,0.000493,10]
[354667586,1740608964258,-500.0,0.000493,10]
[354667587,1740608964279,-373.71474472,0.000493,10]
[354667588,1740608964299,-153.36888108,0.000493,10]
[354667589,1740608964459,-500.0,0.000493,10]
[354667590,1740608964482,-500.0,0.00049315,120]
[354667591,1740608964506,-3741.11,0.00049315,120]
[354667592,1740608964531,-955.27,0.00049315,120]
[354667593,1740608964552,-506.71199551,0.00049315,120]
[354667594,1740608964572,-2337.62,0.00049315,120]
[354667595,1740608964594,-1231.51869192,0.00049589,120]
[354667596,1740608964621,-1796.04,0.00049589,120]
[354667597,1740608964644,-502.33790019,0.00049589,120]
[354667598,1740608964666,-1000.0,0.00049589,2]
[354667599,1740608964687,-9107.28,0.00049589,120]
[354667600,1740608964709,-500.0,0.00049589,120]
[354667601,1740608964732,-500.0,0.00049589,120]
[354667602,1740608964757,-137908.28400539,0.00049589,7]
[354667603,1740608969243,-500.0,0.00049315,120]
[354667604,1740608969273,-500.0,0.00049315,120]
[354667605,1740608969302,-500.0,0.00049315,120]
[354667606,1740608969331,-2533.69,0.00049315,120]
[354667607,1740608969360,-500.0,0.00049315,30]
[354667608,1740608969388,-500.0,0.00049315,120]
[354667609,1740608969416,-1284.26,0.00049315,120]
[354667610,1740608969443,-500.0,0.00049315,120]
[354667611,1740608969477,-24605.46599461,0.00049589,7]
[354667612,1740608969506,-28466.8,0.00049589,120]
[354667613,1740608969536,-500.0,0.00049589,120]
[354667614,1740608969564,-2249.06,0.00049589,120]
[354667615,1740608969592,-500.0,0.00049589,120]
[354667616,1740608969619,-500.0,0.00049589,120]
[354667617,1740608969647,-500.0,0.00049589,120]
[354667618,1740608969685,-14629.56,0.00049589,120]
[354667619,1740608969733,-500.0,0.00049589,120]
[354667620,1740608969770,-500.0,0.00049589,120]
[354667621,1740608969803,-1154.66,0.00049589,120]
[354667622,1740608969835,-3558.64,0.00049589,120]
[354667623,1740608969868,-500.0,0.00049589,120]
[354667624,1740608969899,-1825.47,0.00049589,120]
[354667625,1740608969922,-500.0,0.00049589,120]
[354667626,1740608969944,-500.0,0.00049589,120]
[354667627,1740608969965,-9449.99,0.00049589,120]
[354667628,1740608970152,-1817.32,0.00049589,120]
[354667629,1740608970174,-2641.65,0.00049589,120]
[354667630,1740608970195,-500.0,0.00049589,120]
[354667631,1740608970216,-3741.11,0.00049589,120]
[354667632,1740608970236,-955.27,0.00049589,120]
[354667633,1740608970256,-2337.62,0.00049589,120]
[354667634,1740608970276,-500.0,0.00049589,120]
[354667635,1740608970297,-500.0,0.00049589,120]
[354667636,1740608970317,-500.0,0.00049589,120]
[354667637,1740608970338,-2533.69,0.00049589,120]
[354667638,1740608970358,-500.0,0.00049589,30]
[354667639,1740608970378,-151.0,0.000496,29]
[354667640,1740608970397,-500.0,0.00049863,120]
[354667641,1740608970419,-500.0,0.00049863,120]
[354667642,1740608970442,-2914.93,0.00049863,120]
[354667643,1740608970467,-4536.32,0.00049863,120]
[354667644,1740608970487,-108.62499757,0.00049863,120]
[354667686,1740609032392,-500.0,0.00048999,120]
[354667688,1740609032402,-500.0,0.00048999,120]
[354667690,1740609032412,-500.0,0.00048999,120]
[354667692,1740609032421,-6284.6972917,0.000492,120]
[354667694,1740609032431,-1241.31889441,0.00049215,28]
[354667696,1740609032440,-500.0,0.000493,10]
[354667698,1740609032450,-500.0,0.000493,10]
[354667700,1740609032460,-500.3286748,0.000493,10]
[354667702,1740609032471,-500.0,0.00049315,120]
[354667704,1740609032485,-933.13,0.00049315,120]
[354667706,1740609032494,-1427.56,0.00049315,120]
[354667708,1740609032504,-500.0,0.00049315,120]
[354667710,1740609032513,-500.0,0.00049315,120]
[354667712,1740609032523,-1117.19,0.00049315,120]
[354667714,1740609032532,-86.72013246,0.00049315,120]
[354667716,1740609032544,-413.27986754,0.00049315,120]
[354667718,1740609032555,-1117.19,0.00049315,120]
[354667720,1740609032564,-1117.19,0.00049315,120]
[354667723,1740609032575,-1117.19,0.00049315,120]
[354667725,1740609032586,-1117.19,0.00049315,120]
[354667727,1740609032595,-1117.19,0.00049315,120]
[354667729,1740609032606,-1117.19,0.00049315,120]
[354667731,1740609032615,-1117.19,0.00049315,120]
[354667732,1740609032624,-500.0,0.00049315,21]
[354667735,1740609032633,-267.15976801,0.00049315,120]
[354667737,1740609032643,-500.0,0.00049315,120]
[354667739,1740609032653,-504.79438722,0.00049315,120]
[354667741,1740609032662,-1506.77,0.00049315,120]
[354667742,1740609032671,-10696.27,0.00049315,120]
[354667743,1740609032680,-500.0,0.00049315,120]
[354667745,1740609032689,-2592.29,0.00049315,120]
[354667747,1740609032698,-401.2227502,0.00049315,120]
[354667748,1740609032710,-98.7772498,0.00049315,120]
[354667749,1740609032719,-648.5326959,0.00049315,120]
[354667750,1740609032729,-500.0,0.00049315,120]
[354667751,1740609032739,-500.0,0.00049315,120]
[354667752,1740609032748,-500.0,0.00049315,120]
[354667753,1740609032757,-1550.76,0.00049315,120]
[354667754,1740609032766,-500.0,0.00049315,120]
[354667755,1740609032776,-500.0,0.00049315,120]
[354667756,1740609032785,-4113.18,0.00049315,120]
[354667757,1740609032794,-500.0,0.00049315,120]
[354667758,1740609032804,-500.0,0.00049315,120]
[354667759,1740609032813,-773.74,0.00049315,120]
[354667760,1740609032822,-137.64745921,0.00049315,120]
[354667761,1740609032835,-550.68764746,0.00049315,120]
[354667762,1740609032847,-1318.95489333,0.00049315,120]
[354667763,1740609032856,-500.0,0.00049315,120]
[354667764,1740609032865,-500.0,0.00049315,120]
[354667765,1740609032874,-1150.69,0.00049315,120]
[354667766,1740609032883,-500.0,0.00049315,120]
[354667767,1740609032893,-500.0,0.00049315,120]
[354667768,1740609032902,-482.72735691,0.00049315,120]
[354667769,1740609032914,-1707.42264309,0.00049315,120]
[354667770,1740609032923,-500.0,0.00049315,120]
[354667771,1740609032932,-610.36727448,0.00049315,120]
[354667772,1740609032942,-805.1,0.00049315,120]
[354667773,1740609032951,-1115.18,0.00049315,120]
[354667774,1740609032960,-500.0,0.00049315,120]
[354667775,1740609032970,-665.68,0.00049315,120]
[354667776,1740609032982,-500.0,0.00049315,120]
[354667777,1740609032991,-500.93600384,0.00049315,120]
[354667778,1740609033001,-500.0,0.00049588,120]
[354667779,1740609033010,-616.43997709,0.00049588,120]
[354667780,1740609033019,-500.0,0.00049588,120]
[354667781,1740609033029,-500.0,0.00049588,120]
[354667782,1740609033038,-500.0,0.00049588,120]
[354667783,1740609033048,-809.72,0.00049588,120]
[354667784,1740609033057,-272.08,0.00049588,120]
[354667785,1740609033067,-500.0,0.00049588,120]
[354667786,1740609033077,-500.0,0.00049588,120]
[354667787,1740609033087,-510.64415554,0.00049589,120]
[354667788,1740609033096,-1284.26,0.00049589,120]
[354667789,1740609033106,-500.0,0.00049589,120]
[354667790,1740609033115,-500.0,0.00049589,120]
[354667791,1740609033124,-933.13,0.00049589,120]
[354667792,1740609033134,-1427.56,0.00049589,120]
[354667793,1740609033143,-500.0,0.00049589,120]
[354667794,1740609033153,-500.0,0.00049589,120]
[354667795,1740609033163,-500.0,0.00049589,120]
[354667796,1740609033172,-500.0,0.00049589,21]
[354667797,1740609033182,-500.0,0.00049589,120]
[354667798,1740609033191,-1506.77,0.00049589,120]
[354667799,1740609033200,-10696.27,0.00049589,120]
[354667800,1740609033210,-520.74878324,0.00049589,120]
[354667801,1740609033219,-2592.29,0.00049589,120]
[354667802,1740609033230,-609.77117919,0.00049589,120]
[354667803,1740609033240,-584.16711782,0.00049589,120]
[354667804,1740609033250,-500.0,0.00049589,120]
[354667805,1740609033259,-500.0,0.00049589,120]
[354667806,1740609033269,-1550.76,0.00049589,120]
[354667807,1740609033278,-500.0,0.00049589,120]
[354667808,1740609033287,-500.0,0.00049589,120]
[354667809,1740609033297,-4113.18,0.00049589,120]
[354667810,1740609033307,-500.0,0.00049589,120]
[354667811,1740609033316,-500.0,0.00049589,120]
[354667812,1740609033326,-773.74,0.00049589,120]
[354667813,1740609033335,-2007.29,0.00049589,120]
[354667814,1740609033455,-500.0,0.00049589,120]
[354667815,1740609033465,-1150.69,0.00049589,120]
[354667816,1740609033476,-500.0,0.00049589,120]
[354667817,1740609033490,-500.0,0.00049589,120]
[354667818,1740609033499,-2190.15,0.00049589,120]
[354667819,1740609033509,-805.1,0.00049589,120]
[354667820,1740609033519,-1115.18,0.00049589,120]
[354667821,1740609033530,-500.0,0.00049589,120]
[354667822,1740609033540,-665.68,0.00049589,120]
[354667823,1740609033549,-500.0,0.00049589,120]
[354667824,1740609033558,-500.0,0.00049862,120]
[354667825,1740609033568,-500.0,0.00049862,120]
[354667826,1740609033577,-313.97481182,0.00049862,120]
[354667827,1740609033587,-809.72,0.00049862,120]
[354667828,1740609033595,-500.0,0.00049862,120]
[354667829,1740609033605,-500.0,0.00049862,120]
[354667830,1740609033614,-643.81500243,0.00049863,120]
[354667831,1740609033624,-1787.06,0.00049863,120]
[354667832,1740609033633,-500.0,0.00049863,120]
[354667833,1740609033643,-1478.98,0.00049863,120]
[354667834,1740609033654,-1500.56,0.00049863,120]
[354667835,1740609033665,-500.0,0.00049863,120]
[354667836,1740609033674,-500.0,0.00049863,120]
[354667837,1740609033684,-500.0,0.00049863,120]
[354667838,1740609033693,-500.0,0.00049863,120]
[354667839,1740609033703,-782.09,0.00049863,120]
[354667840,1740609033712,-14765.01,0.00049863,120]
[354667841,1740609033721,-5266.25,0.00049863,120]
[354667842,1740609033732,-500.0,0.00049863,120]
[354667843,1740609033741,-770.39,0.00049863,120]
[354667844,1740609033751,-500.0,0.00049863,120]
[354667845,1740609033760,-792.64,0.00049863,30]
[354667846,1740609033770,-500.0,0.00049863,120]
[354667847,1740609033780,-2160.7,0.00049863,120]
[354667848,1740609033790,-500.0,0.00049863,14]
[354667849,1740609033799,-500.0,0.00049863,120]
[354667850,1740609033808,-1532.62,0.00049863,120]
[354667851,1740609033817,-6927.1,0.00049863,120]
[354667852,1740609033827,-2666.1,0.00049863,120]
[354667853,1740609033836,-917.32,0.00049863,120]
[354667854,1740609033846,-500.0,0.00049863,120]
[354667855,1740609033855,-13034.47,0.00049863,3]
[354667856,1740609033864,-461.56442783,0.00049863,120]
[354667857,1740609033874,-502.49556884,0.00049863,120]
[354667858,1740609033883,-2183.5,0.00049863,120]
[354667859,1740609033893,-7716.27,0.00049863,120]
[354667860,1740609033902,-500.0,0.00049863,120]
[354667861,1740609033911,-1295.69,0.00049863,120]
[354667862,1740609033920,-1796.04,0.00049863,120]
[354667863,1740609033931,-1000.0,0.00049863,2]
[354667864,1740609033940,-9107.28,0.00049863,120]
[354667865,1740609033950,-500.0,0.00049863,120]
[354667866,1740609033959,-500.0,0.00049863,120]
[354667867,1740609033969,-162513.75,0.00049863,7]
[354667868,1740609033980,-28466.8,0.00049863,120]
[354667869,1740609033989,-500.0,0.00049863,120]
[354667870,1740609033998,-2249.06,0.00049863,120]
[354667871,1740609034007,-500.0,0.00049863,120]
[354667872,1740609034017,-500.0,0.00049863,120]
[354667873,1740609034026,-500.0,0.00049863,120]
[354667874,1740609034036,-14629.56,0.00049863,120]
[354667875,1740609034045,-500.0,0.00049863,120]
[354667876,1740609034055,-500.0,0.00049863,120]
[354667877,1740609034064,-1154.66,0.00049863,120]
[354667878,1740609034073,-3558.64,0.00049863,120]
[354667879,1740609034082,-500.0,0.00049863,120]
[354667880,1740609034091,-1825.47,0.00049863,120]
[354667881,1740609034101,-500.0,0.00049863,120]
[354667882,1740609034110,-500.0,0.00049863,120]
[354667883,1740609034120,-9449.99,0.00049863,120]
[354667884,1740609034130,-1817.32,0.00049863,120]
[354667885,1740609034139,-2641.65,0.00049863,120]
[354667886,1740609034149,-500.0,0.00049863,120]
[354667887,1740609034159,-3741.11,0.00049863,120]
[354667888,1740609034168,-955.27,0.00049863,120]
[354667889,1740609034177,-2337.62,0.00049863,120]
[354667890,1740609034186,-500.0,0.00049863,120]
[354667891,1740609034195,-500.0,0.00049863,120]
[354667892,1740609034205,-500.0,0.00049863,120]
[354667893,1740609034214,-2533.69,0.00049863,120]
[354667894,1740609034223,-500.0,0.00049863,30]
[354667895,1740609034234,-1284.26,0.00049863,120]
[354667896,1740609034244,-500.0,0.00049863,120]
[354667897,1740609034253,-933.13,0.00049863,120]
[354667898,1740609034263,-1427.56,0.00049863,120]
[354667899,1740609034274,-500.0,0.00049863,120]
[354667900,1740609034284,-500.0,0.00049863,120]
[354667901,1740609034293,-500.0,0.00049863,21]
[354667902,1740609034303,-500.0,0.00049863,120]
[354667903,1740609034312,-1506.77,0.00049863,120]
[354667904,1740609034322,-10696.27,0.00049863,120]
[354667905,1740609034332,-2592.29,0.00049863,120]
[354667906,1740609034341,-1550.76,0.00049863,120]
[354667907,1740609034351,-505.32613227,0.00049863,120]
[354667908,1740609034360,-500.0,0.00049863,120]
[354667909,1740609034369,-4113.18,0.00049863,120]
[354667910,1740609034378,-500.0,0.00049863,120]
[354667911,1740609034388,-773.74,0.00049863,120]
[354667912,1740609034397,-2007.29,0.00049863,120]
[354667913,1740609034406,-500.0,0.00049863,120]
[354667914,1740609034415,-1150.69,0.00049863,120]
[354667915,1740609034424,-500.0,0.00049863,120]
[354667916,1740609034434,-500.0,0.00049863,120]
[354667917,1740609034443,-2190.15,0.00049863,120]
[354667918,1740609034454,-805.1,0.00049863,120]
[354667919,1740609034463,-1115.18,0.00049863,120]
[354667920,1740609034477,-492.97114112,0.00049863,120]
[354667921,1740609034489,-665.68,0.00049863,120]
[354667922,1740609034498,-505.23442972,0.00049863,120]
[354667923,1740609034508,-151.0,0.000499,22]
[354667924,1740609034518,-7191.36,0.000499,30]
[354667925,1740609034528,-1241.31889437,0.00049959,28]
[354667926,1740609034537,-470.68914565,0.0005,120]
[354667927,1740609034547,-500.0,0.000501,10]
[354667928,1740609034556,-500.0,0.000501,10]
[354667929,1740609034566,-500.0,0.000501,10]
[354667930,1740609034575,-500.0,0.00050136,120]
[354667931,1740609034585,-2914.93,0.00050136,120]
[354667932,1740609034594,-4536.32,0.00050136,120]
[354667933,1740609034603,-752.44,0.00050136,120]
[354667934,1740609034613,-1787.06,0.00050136,120]
[354667935,1740609034622,-1478.98,0.00050136,120]
[354667936,1740609034631,-1500.56,0.00050136,120]
[354667937,1740609034642,-782.09,0.00050136,120]
[354667938,1740609034652,-14765.01,0.00050136,120]
[354667939,1740609034661,-5266.25,0.00050136,120]
[354667940,1740609034670,-500.0,0.00050136,120]
[354667941,1740609034680,-770.39,0.00050136,120]
[354667942,1740609034689,-500.0,0.00050136,120]
[354667943,1740609034698,-792.64,0.00050136,30]
[354667944,1740609034707,-2160.7,0.00050136,120]
[354667945,1740609034716,-500.0,0.00050136,14]
[354667946,1740609034726,-1532.62,0.00050136,120]
[354667947,1740609034736,-6927.1,0.00050136,120]
[354667948,1740609034746,-2666.1,0.00050136,120]
[354667949,1740609034755,-917.32,0.00050136,120]
[354667950,1740609034764,-13034.47,0.00050136,3]
[354667951,1740609034773,-2183.5,0.00050136,120]
[354667952,1740609034782,-7716.27,0.00050136,120]
[354667953,1740609034791,-1295.69,0.00050136,120]
[354667954,1740609034801,-1796.04,0.00050136,120]
[354667955,1740609034810,-1000.0,0.00050136,2]
[354667956,1740609034819,-9107.28,0.00050136,120]
[354667957,1740609034828,-500.0,0.00050136,120]
[354667958,1740609034838,-162513.75,0.00050136,7]
[354667959,1740609034847,-28466.8,0.00050136,120]
[354667960,1740609034857,-2249.06,0.00050136,120]
[354667961,1740609034866,-500.0,0.00050136,120]
[354667962,1740609034875,-14629.56,0.00050136,120]
[354667963,1740609034884,-500.0,0.00050136,120]
[354667964,1740609034893,-1154.66,0.00050136,120]
[354667965,1740609034903,-3558.64,0.00050136,120]
[354667966,1740609034912,-1825.47,0.00050136,120]
[354667967,1740609034921,-500.0,0.00050136,120]
[354667968,1740609034931,-9449.99,0.00050136,120]
[354667969,1740609034940,-168.58748843,0.00050136,120]
[354667970,1740609034954,-1648.73251157,0.00050136,120]
[354667971,1740609034963,-2641.65,0.00050136,120]
[354667972,1740609034972,-500.0,0.00050136,120]
[354667973,1740609034981,-3741.11,0.00050136,120]
[354667974,1740609034991,-955.27,0.00050136,120]
[354667975,1740609035000,-2337.62,0.00050136,120]
[354667976,1740609035009,-2533.69,0.00050136,120]
[354667977,1740609035020,-500.0,0.00050136,30]
[354667978,1740609035030,-1284.26,0.00050136,120]
[354667979,1740609035040,-500.0,0.00050136,120]